fUSD/lending_fUSD_20260106
["ID","MTS","AMOUNT","RATE_DAILY","PERIOD"]
[400536467,1767702648631,-170.601786,0.0003969,120]
[400536468,1767702648640,-198.329205,0.0003969,120]
[400536469,1767702648654,-170.601786,0.0003969,120]
[400536470,1767702648663,-198.329205,0.0003969,120]
[400536471,1767702648672,-170.601786,0.0003969,120]
[400536472,1767702648682,-198.329205,0.0003969,120]
[400536473,1767702648692,-170.601786,0.0003969,120]
[400536474,1767702648701,-198.329205,0.0003969,120]
[400536475,1767702648710,-170.601786,0.0003969,120]
[400536476,1767702648723,-170.601786,0.0003969,120]
[400536477,1767702648735,-198.329205,0.0003969,120]
[400536478,1767702648745,-198.329205,0.0003969,120]
[400536479,1767702648755,-170.601786,0.0003969,120]
[400536480,1767702648767,-170.601786,0.0003969,120]
[400536481,1767702648776,-151.0,0.0003969,120]
[400536482,1767702648786,-184.543404,0.0003969,120]
[400536483,1767702648795,-151.0,0.0003969,120]
[400536484,1767702648804,-151.0,0.0003969,120]
[400536485,1767702648813,-151.0,0.0003969,120]
[400536486,1767702648822,-164.796381,0.0003969,120]
[400536487,1767702648832,-151.0,0.0003969,120]
[400536488,1767702648841,-151.0,0.0003969,120]
[400536489,1767702648850,-151.0,0.0003969,120]
[400536490,1767702648860,-154.837006,0.0003969,7]
[400536491,1767702648870,-154.837006,0.0003969,7]
[400536492,1767702648879,-4252.31580452,0.0003969,120]
[400536493,1767702648895,-947.68419548,0.0003969,120]
[400536494,1767702648904,-154.837006,0.0003969,7]
[400536495,1767702648913,-154.837006,0.0003969,7]
[400536496,1767702648923,-151.0,0.0003969,120]
[400536497,1767702648932,-154.837006,0.0003969,7]
[400536498,1767702648942,-749.15753837,0.0003969,120]
[400536499,1767702648969,-558.99652038,0.00031507,31]
[400536500,1767702648980,-3.54397662,0.00031507,31]
[400536501,1767702648990,-3168.49381439,0.0003969,120]
[400536502,1767702649001,-1282.34864724,0.0003969,120]
[400536503,1767702649010,-154.837006,0.0003969,7]
[400536504,1767702649019,-193.335707,0.0003969,120]
[400536505,1767702649028,-262.275864,0.0003969,120]
[400536506,1767702649038,-151.0,0.0003969,120]
[400536507,1767702649047,-5200.0,0.0003969,120]
[400536508,1767702649057,-154.837006,0.0003969,7]
[400536509,1767702649066,-154.837006,0.0003969,7]
[400536510,1767702649076,-151.0,0.0003969,120]
[400536511,1767702649086,-5200.0,0.0003969,120]
[400536512,1767702649095,-159.245567,0.0003969,120]
[400536513,1767702649104,-151.0,0.0003969,120]
[400536514,1767702649113,-159.245567,0.0003969,120]
[400536515,1767702649122,-151.0,0.0003969,120]
[400536516,1767702649132,-159.245567,0.0003969,120]
[400536517,1767702649141,-159.245567,0.0003969,120]
[400536518,1767702649150,-151.0,0.0003969,120]
[400536519,1767702649159,-270.493476,0.0003969,120]
[400536520,1767702649168,-151.0,0.0003969,120]
[400536521,1767702649177,-151.0,0.0003969,120]
[400536522,1767702649187,-151.0,0.0003969,120]
[400536523,1767702649195,-151.0,0.0003969,120]
[400536524,1767702649205,-221.744876,0.0003969,120]
[400536525,1767702649215,-219.850624,0.0003969,120]
[400536526,1767702649224,-267.862679,0.0003969,120]
[400536527,1767702649235,-151.0,0.0003969,120]
[400536528,1767702649244,-219.850624,0.0003969,120]
[400536529,1767702649253,-151.0,0.0003969,120]
[400536530,1767702649262,-219.850624,0.0003969,120]
[400536531,1767702649272,-151.0,0.0003969,120]
[400536532,1767702649282,-219.850624,0.0003969,120]
[400536533,1767702649291,-151.0,0.0003969,120]
[400536534,1767702649300,-151.0,0.0003969,120]
[400536535,1767702649309,-151.0,0.0003969,120]
[400536536,1767702649319,-151.0,0.0003969,120]
[400536537,1767702649328,-151.0,0.0003969,120]
[400536538,1767702649337,-151.0,0.0003969,120]
[400536539,1767702649347,-225.100297,0.0003969,120]
[400536540,1767702649356,-151.0,0.0003969,120]
[400536541,1767702649365,-151.0,0.0003969,120]
[400536542,1767702649376,-190.096438,0.0003969,120]
[400536543,1767702649386,-151.0,0.0003969,120]
[400536544,1767702649396,-190.096438,0.0003969,120]
[400536546,1767702649405,-100.48320488,0.0003969,120]
[400536547,1767702649418,-50.51679512,0.0003969,120]
[400536548,1767702649428,-190.096438,0.0003969,120]
[400536549,1767702649438,-151.0,0.0003969,120]
[400536550,1767702649447,-562.540497,0.0003969,120]
[400536551,1767702649456,-190.096438,0.0003969,120]
[400536552,1767702649465,-192.614882,0.0003969,120]
[400536553,1767702649478,-562.540497,0.0003969,120]
[400536554,1767702649490,-562.540497,0.0003969,120]
[400536555,1767702649500,-176.93794,0.0003969,120]
[400536556,1767702649509,-176.93794,0.0003969,120]
[400536557,1767702649518,-562.540497,0.0003969,120]
[400536558,1767702649528,-723.53458661,0.0003969,2]
[400536559,1767702649538,-327.81198079,0.0003969,2]
[400536560,1767702649551,-13595.73787491,0.0003969,2]
[400536562,1767702649669,-146.17292391,0.0003969,2]
[400536563,1767702649684,-92065.5,0.0003969,2]
[400536564,1767702649695,-743529.10749163,0.0003969,2]
[400536565,1767702649707,-149612.13514215,0.0003969,2]
[400536566,1767702649717,-52676.4956608,0.0003969,2]
[400536567,1767702649727,-1000.0,0.000397,2]
[400536568,1767702649737,-1161.686,0.000397,2]
[400536569,1767702649747,-3027.3241112,0.00039791,2]
[400536570,1767702649756,-249.1686847,0.00039791,2]
[400536571,1767702649765,-500.0,0.00039799,60]
[400536572,1767702649775,-264.78666501,0.00039799,120]
[400536573,1767702649785,-500.0,0.00039799,60]
[400536574,1767702649794,-500.0,0.00039799,30]
[400536575,1767702649804,-414.0,0.00039799,30]
[400536576,1767702649814,-500.0,0.00039799,30]
[400536577,1767702649823,-520.0,0.00039799,30]
[400536578,1767702649833,-500.0,0.00039799,30]
[400536579,1767702649843,-518.5,0.00039799,30]
[400536580,1767702649853,-429.318,0.00039799,30]
[400536581,1767702649863,-500.0,0.00039799,30]
[400536582,1767702649873,-539.24,0.00039799,30]
[400536583,1767702649885,-500.0,0.00039799,30]
[400536584,1767702649895,-445.202766,0.00039799,30]
[400536585,1767702649905,-500.0,0.00039799,30]
[400536586,1767702649914,-537.6845,0.00039799,30]
[400536587,1767702649923,-640.46089842,0.00039799,30]
[400536588,1767702649933,-500.0,0.00039799,30]
[400536589,1767702649942,-461.67526835,0.00039799,30]
[400536590,1767702649951,-557.5788265,0.00039799,30]
[400536591,1767702649960,-500.0,0.00039799,30]
[400536592,1767702649969,-500.0,0.00039799,30]
[400536593,1767702649980,-500.0,0.00039799,30]
[400536594,1767702649990,-500.0,0.00039799,30]
[400536595,1767702650000,-500.0,0.00039799,30]
[400536596,1767702650010,-500.0,0.00039799,30]
[400536597,1767702650020,-500.0,0.00039799,30]
[400536598,1767702650029,-500.0,0.00039799,30]
[400536599,1767702650039,-500.0,0.00039799,30]
[400536600,1767702650048,-500.0,0.00039799,30]
[400536601,1767702650058,-500.0,0.00039799,30]
[400536602,1767702650068,-500.0,0.00039799,30]
[400536603,1767702650077,-151.0,0.00039799,30]
[400536604,1767702650087,-500.0,0.00039799,30]
[400536605,1767702650096,-500.0,0.00039799,30]
[400536606,1767702650106,-500.0,0.00039799,30]
[400536607,1767702650115,-151.0,0.00039799,30]
[400536608,1767702650125,-500.0,0.00039799,30]
[400536609,1767702650134,-500.0,0.00039799,30]
[400536610,1767702650143,-500.0,0.00039799,30]
[400536611,1767702650153,-500.0,0.00039799,30]
[400536612,1767702650163,-500.0,0.00039799,30]
[400536613,1767702650172,-363.21860933,0.00039799,30]
[400536614,1767702650182,-500.0,0.00039799,30]
[400536615,1767702650191,-500.0,0.00039799,30]
[400536616,1767702650200,-500.0,0.00039799,30]
[400536617,1767702650210,-500.0,0.00039799,30]
[400536618,1767702650219,-151.0,0.00039799,30]
[400536619,1767702650229,-500.0,0.00039799,30]
[400536620,1767702650238,-500.0,0.00039799,30]
[400536621,1767702650247,-151.0,0.00039799,30]
[400536622,1767702650257,-500.0,0.00039799,30]
[400536623,1767702650266,-500.0,0.00039799,30]
[400536624,1767702650274,-151.0,0.00039799,30]
[400536625,1767702650282,-500.0,0.00039799,30]
[400536626,1767702650291,-500.0,0.00039799,30]
[400536627,1767702650300,-151.0,0.00039799,30]
[400536628,1767702650309,-250.0,0.00039799,30]
[400536629,1767702650318,-500.0,0.00039799,30]
[400536630,1767702650328,-500.0,0.00039799,30]
[400536631,1767702650337,-250.0,0.00039799,30]
[400536632,1767702650347,-151.0,0.00039799,30]
[400536633,1767702650356,-250.0,0.00039799,30]
[400536634,1767702650366,-500.0,0.00039799,30]
[400536635,1767702650376,-500.0,0.00039799,30]
[400536636,1767702650386,-151.0,0.00039799,30]
[400536637,1767702650396,-250.0,0.00039799,30]
[400536638,1767702650406,-500.0,0.00039799,30]
[400536639,1767702650416,-500.0,0.00039799,30]
[400536640,1767702650427,-151.0,0.00039799,30]
[400536641,1767702650436,-250.0,0.00039799,30]
[400536642,1767702650446,-500.0,0.00039799,30]
[400536643,1767702650455,-250.0,0.00039799,30]
[400536645,1767702650464,-500.0,0.00039799,30]
[400536646,1767702650473,-500.0,0.00039799,30]
[400536647,1767702650483,-151.0,0.00039799,30]
[400536648,1767702650493,-500.0,0.00039799,30]
[400536649,1767702650502,-250.0,0.00039799,30]
[400536650,1767702650512,-500.0,0.00039799,30]
[400536651,1767702650522,-500.0,0.00039799,30]
[400536652,1767702650532,-500.0,0.00039799,30]
[400536653,1767702650542,-151.0,0.00039799,30]
[400536654,1767702650551,-500.0,0.00039799,30]
[400536655,1767702650561,-250.0,0.00039799,30]
[400536656,1767702650570,-500.0,0.00039799,30]
[400536657,1767702650580,-500.0,0.00039799,30]
[400536658,1767702650589,-151.0,0.00039799,30]
[400536659,1767702650598,-500.0,0.00039799,30]
[400536660,1767702650607,-250.0,0.00039799,30]
[400536661,1767702650617,-500.0,0.00039799,30]
[400536662,1767702650627,-500.0,0.00039799,30]
[400536663,1767702650636,-250.0,0.00039799,30]
[400536664,1767702650792,-151.0,0.00039799,30]
[400536665,1767702650802,-220.12982353,0.00039799,30]
[400536666,1767702650812,-500.0,0.00039799,30]
[400536667,1767702650822,-500.0,0.00039799,30]
[400536668,1767702650833,-500.0,0.00039799,30]
[400536669,1767702650842,-151.0,0.00039799,30]
[400536670,1767702650852,-250.0,0.00039799,30]
[400536671,1767702650862,-500.0,0.00039799,30]
[400536672,1767702650872,-500.0,0.00039799,30]
[400536673,1767702650881,-300.0,0.00039799,30]
[400536674,1767702650891,-151.0,0.00039799,30]
[400536675,1767702650900,-500.0,0.00039799,30]
[400536676,1767702650910,-500.0,0.00039799,30]
[400536677,1767702650919,-151.0,0.00039799,30]
[400536678,1767702650930,-500.0,0.00039799,30]
[400536679,1767702650939,-357.15799591,0.00039799,30]
[400536680,1767702650949,-151.0,0.00039799,30]
[400536681,1767702650959,-500.0,0.00039799,30]
[400536682,1767702650969,-500.0,0.00039799,30]
[400536683,1767702650978,-151.0,0.00039799,30]
[400536684,1767702650988,-500.0,0.00039799,30]
[400536685,1767702650998,-500.0,0.00039799,30]
[400536686,1767702651007,-151.0,0.00039799,30]
[400536687,1767702651017,-500.0,0.00039799,30]
[400536688,1767702651026,-500.0,0.00039799,30]
[400536689,1767702651036,-151.0,0.00039799,30]
[400536690,1767702651046,-500.0,0.00039799,30]
[400536691,1767702651056,-500.0,0.00039799,30]
[400536692,1767702651065,-151.0,0.00039799,30]
[400536693,1767702651075,-500.0,0.00039799,30]
[400536694,1767702651085,-500.0,0.00039799,30]
[400536695,1767702651094,-151.0,0.00039799,30]
[400536696,1767702651103,-500.0,0.00039799,30]
[400536697,1767702651113,-500.0,0.00039799,30]
[400536698,1767702651122,-500.0,0.00039799,30]
[400536699,1767702651132,-500.0,0.00039799,30]
[400536700,1767702651141,-500.0,0.00039799,30]
[400536701,1767702651151,-500.0,0.00039799,30]
[400536702,1767702651160,-500.0,0.00039799,30]
[400536703,1767702651170,-500.0,0.00039799,30]
[400536704,1767702651179,-500.0,0.00039799,30]
[400536705,1767702651189,-500.0,0.00039799,30]
[400536706,1767702651198,-500.0,0.00039799,30]
[400536708,1767702651207,-500.0,0.00039799,30]
[400536709,1767702651217,-500.0,0.00039799,120]
[400536710,1767702651226,-500.0,0.00039799,120]
[400536711,1767702651235,-281679.26538296,0.000398,2]
[400536712,1767702651244,-151.0,0.000398,2]
[400536713,1767702651254,-150.0,0.000398,21]
[400536714,1767702651263,-200.0,0.000398,2]
[400536715,1767702651273,-151.0,0.000398,7]
[400536716,1767702651283,-151.0,0.000398,7]
[400536717,1767702651292,-151.0,0.000398,7]
[400536718,1767702651301,-151.0,0.000398,7]
[400536719,1767702651311,-151.0,0.000398,7]
[400536720,1767702651320,-7139.41614949,0.00039877,10]
[400536721,1767702651331,-157.56857,0.00039888,30]
[400536722,1767702651340,-11327.07353138,0.000399,30]
[400536723,1767702651349,-3000.0,0.000399,120]
[400536724,1767702651359,-512.0,0.00039901,13]
[400536725,1767702651369,-178.06,0.00039945,2]
[400536726,1767702651378,-1204.12895474,0.00039947,2]
[400536727,1767702651388,-507.11329483,0.00039947,2]
[400536728,1767702651397,-158.46668356,0.00039978,2]
[400536729,1767702651406,-500.0,0.00039979,60]
[400536730,1767702651418,-500.0,0.00039979,60]
[400536731,1767702651428,-500.0,0.00039979,30]
[400536732,1767702651437,-80571.38640631,0.0003998,2]
[400536733,1767702651446,-151.0,0.0003998,120]
[400536734,1767702651456,-287.361696,0.0003998,120]
[400536735,1767702651466,-151.0,0.0003998,120]
[400536736,1767702651475,-151.0,0.0003998,120]
[400536738,1767702651485,-243.781657,0.0003998,120]
[400536739,1767702651494,-243.781657,0.0003998,120]
[400536740,1767702651504,-243.781657,0.0003998,120]
[400536741,1767702651514,-151.0,0.0003998,120]
[400536742,1767702651523,-243.781657,0.0003998,120]
[400536743,1767702651534,-151.0,0.0003998,30]
[400536744,1767702651544,-459.461849,0.0003998,28]
[400536745,1767702651553,-459.461849,0.0003998,28]
[400536746,1767702651563,-459.461849,0.0003998,28]
[400536747,1767702651572,-459.461849,0.0003998,28]
[400536748,1767702651581,-151.0,0.0003998,120]
[400536749,1767702651591,-151.0,0.0003998,120]
[400536750,1767702651600,-151.0,0.0003998,120]
[400536751,1767702651609,-151.0,0.0003998,120]
[400536752,1767702651620,-1915.143244,0.0003998,120]
[400536753,1767702651629,-1915.143244,0.0003998,120]
[400536754,1767702651639,-1915.143244,0.0003998,120]
[400536755,1767702651655,-1915.143244,0.0003998,120]
[400536756,1767702651664,-325.370459,0.0003998,120]
[400536757,1767702651674,-325.370459,0.0003998,120]
[400536758,1767702651683,-325.370459,0.0003998,120]
[400536759,1767702651692,-325.370459,0.0003998,120]
[400536760,1767702651702,-198.329205,0.0003998,120]
[400536761,1767702651711,-170.601786,0.0003998,120]
[400536762,1767702651721,-198.329205,0.0003998,120]
[400536763,1767702651730,-170.601786,0.0003998,120]
[400536764,1767702651740,-198.329205,0.0003998,120]
[400536765,1767702651749,-170.601786,0.0003998,120]
[400536766,1767702651758,-198.329205,0.0003998,120]
[400536767,1767702651768,-170.601786,0.0003998,120]
[400536768,1767702651777,-151.0,0.0003998,120]
[400536769,1767702651786,-151.0,0.0003998,120]
[400536770,1767702651795,-151.0,0.0003998,120]
[400536771,1767702651805,-170.250067,0.0003998,120]
[400536772,1767702651815,-151.0,0.0003998,120]
[400536773,1767702651825,-151.0,0.0003998,120]
[400536774,1767702651834,-151.0,0.0003998,120]
[400536775,1767702651844,-154.837006,0.0003998,7]
[400536776,1767702651854,-5200.0,0.0003998,120]
[400536777,1767702651863,-154.837006,0.0003998,7]
[400536778,1767702651874,-151.0,0.0003998,120]
[400536779,1767702651884,-5200.0,0.0003998,120]
[400536780,1767702651894,-154.837006,0.0003998,7]
[400536781,1767702651903,-151.0,0.0003998,120]
[400536782,1767702651913,-5200.0,0.0003998,120]
[400536783,1767702651922,-154.837006,0.0003998,7]
[400536784,1767702651932,-151.0,0.0003998,120]
[400536785,1767702651941,-5200.0,0.0003998,120]
[400536786,1767702651950,-159.245567,0.0003998,120]
[400536787,1767702651960,-151.0,0.0003998,120]
[400536788,1767702651969,-159.245567,0.0003998,120]
[400536789,1767702651978,-151.0,0.0003998,120]
[400536790,1767702651987,-159.245567,0.0003998,120]
[400536791,1767702651998,-159.245567,0.0003998,120]
[400536792,1767702652007,-151.0,0.0003998,120]
[400536793,1767702652020,-151.0,0.0003998,120]
[400536794,1767702652039,-229.392799,0.0003998,120]
[400536795,1767702652055,-151.0,0.0003998,120]
[400536796,1767702652064,-151.0,0.0003998,120]
[400536797,1767702652074,-219.850624,0.0003998,120]
[400536798,1767702652083,-151.0,0.0003998,120]
[400536799,1767702652093,-219.850624,0.0003998,120]
[400536800,1767702652103,-151.0,0.0003998,120]
[400536801,1767702652113,-219.850624,0.0003998,120]
[400536802,1767702652122,-211.400003,0.0003998,120]
[400536803,1767702652131,-219.850624,0.0003998,120]
[400536804,1767702652140,-151.0,0.0003998,120]
[400536805,1767702652149,-151.0,0.0003998,120]
[400536806,1767702652158,-151.0,0.0003998,120]
[400536807,1767702652168,-151.0,0.0003998,120]
[400536808,1767702652177,-151.0,0.0003998,120]
[400536809,1767702652187,-151.0,0.0003998,120]
[400536810,1767702652196,-151.0,0.0003998,120]
[400536811,1767702652205,-151.0,0.0003998,120]
[400536812,1767702652215,-190.096438,0.0003998,120]
[400536813,1767702652225,-151.0,0.0003998,120]
[400536814,1767702652235,-190.096438,0.0003998,120]
[400536815,1767702652244,-151.0,0.0003998,120]
[400536816,1767702652254,-190.096438,0.0003998,120]
[400536817,1767702652263,-151.0,0.0003998,120]
[400536818,1767702652273,-562.540497,0.0003998,120]
[400536819,1767702652284,-190.096438,0.0003998,120]
[400536820,1767702652294,-562.540497,0.0003998,120]
[400536821,1767702652304,-562.540497,0.0003998,120]
[400536822,1767702652314,-176.93794,0.0003998,120]
[400536823,1767702652325,-176.93794,0.0003998,120]
[400536824,1767702652335,-562.540497,0.0003998,120]
[400536825,1767702652345,-151.52417635,0.00039999,2]
[400536826,1767702652355,-541.00173354,0.00039999,60]
[400536827,1767702652364,-500.0,0.00039999,60]
[400536828,1767702652374,-388.42827792,0.00039999,15]
[400536829,1767702652383,-409.20447919,0.00039999,31]
[400536830,1767702652393,-485.73892729,0.00039999,15]
[400536831,1767702652402,-424.59217769,0.00039999,31]
[400536832,1767702652412,-433.04062372,0.00039999,31]
[400536833,1767702652421,-377.49296239,0.00039999,31]
[400536834,1767702652431,-458.21782115,0.00039999,31]
[400536835,1767702652440,-500.0,0.00039999,31]
[400536836,1767702652450,-395.88367429,0.00039999,31]
[400536837,1767702652460,-500.0,0.00039999,120]
[400536838,1767702652469,-500.0,0.0004,5]
[400536839,1767702652479,-10626.32725815,0.0004,2]
[400536840,1767702652489,-171.7153054,0.0004,120]
[400536841,1767702652498,-155.70529597,0.0004,30]
[400536842,1767702652507,-304.26151546,0.0004,120]
[400536843,1767702652517,-388.13722766,0.0004,2]
[400536844,1767702652526,-1551.13721202,0.0004,2]
[400536845,1767702652536,-217.53282495,0.0004,2]
[400536846,1767702652545,-313.0110641,0.0004,2]
[400536847,1767702652554,-472.25340358,0.0004,120]
[400536848,1767702652564,-525.25350562,0.0004,120]
[400536849,1767702652573,-3180.72563746,0.0004,120]
[400536850,1767702652583,-160.8351496,0.0004,2]
[400536851,1767702652592,-150.0,0.0004,120]
[400536852,1767702652601,-5000.52874136,0.0004,11]
[400536853,1767702652611,-1132.82008243,0.0004,28]
[400536854,1767702652621,-50346.63862973,0.0004,3]
[400536855,1767702652631,-1004.76832819,0.0004,30]
[400536856,1767702652640,-154.0,0.0004,120]
[400536857,1767702652652,-295.0,0.0004,45]
[400536858,1767702652661,-17328.9419947,0.0004,14]
[400536859,1767702652670,-1000.0,0.0004,120]
[400536860,1767702652680,-250.0,0.0004,45]
[400536861,1767702652690,-250.0,0.0004,45]
[400536862,1767702652700,-250.0,0.0004,45]
[400536863,1767702652710,-500.0,0.0004,120]
[400536864,1767702652720,-250.0,0.0004,45]
[400536865,1767702652730,-250.0,0.0004,45]
[400536866,1767702652740,-4056.04573083,0.0004,5]
[400536867,1767702652751,-5000.71307433,0.0004,10]
[400536868,1767702652760,-673.65,0.0004,30]
[400536869,1767702652769,-315.0,0.0004,2]
[400536870,1767702652780,-9999.99999903,0.0004,2]
[400536871,1767702652792,-5000.0,0.0004,3]
[400536872,1767702652802,-152.0,0.0004,120]
[400536873,1767702652811,-155.15906807,0.0004,60]
[400536874,1767702652821,-9175.36727259,0.0004,120]
[400536875,1767702652831,-205.6872263,0.0004,30]
[400536876,1767702652841,-185.22476182,0.0004,120]
[400536877,1767702652851,-725.02838517,0.0004,6]
[400536878,1767702652860,-1441.99,0.0004,2]
[400536879,1767702652870,-308.42114902,0.0004,120]
[400536880,1767702652880,-160.0,0.0004,33]
[400536881,1767702652889,-238.36801592,0.0004,2]
[400536882,1767702652899,-287.0,0.0004,20]
[400536883,1767702652908,-10927.23386033,0.0004,120]
[400536884,1767702652918,-1009.0,0.0004,90]
[400536885,1767702652928,-507.20951874,0.0004,120]
[400536886,1767702652937,-999.99999901,0.0004,120]
[400536887,1767702652946,-167.34,0.0004,120]
[400536888,1767702652956,-625.8,0.0004,120]
[400536889,1767702652966,-10210.12,0.0004,120]
[400536890,1767702652976,-641.53,0.0004,120]
[400536891,1767702652985,-338.31,0.0004,120]
[400536892,1767702652995,-319.99,0.0004,120]
[400536893,1767702653005,-288.22,0.0004,120]
[400536894,1767702653015,-539.08,0.0004,120]
[400536895,1767702653024,-6056.12,0.0004,120]
[400536896,1767702653034,-342.82,0.0004,120]
[400536897,1767702653044,-253.0,0.0004,30]
[400536898,1767702653054,-17514.49,0.0004,120]
[400536899,1767702653063,-22500.0,0.0004,120]
[400536900,1767702653073,-4867.41348411,0.00040015,2]
[400536901,1767702653083,-157.56857,0.00040088,30]
[400536902,1767702653093,-3178.64343568,0.0004013,120]
[400536903,1767702653102,-168.0,0.00040162,2]
[400536904,1767702653112,-168.0,0.00040196,2]
[400536905,1767702653122,-200.0,0.00040198,2]
[400536906,1767702653134,-415.57318569,0.00040274,5]
[400536907,1767702653147,-157.56857,0.00040288,30]
[400536908,1767702653163,-348.58,0.00040375,120]
[400536909,1767702653174,-22500.0,0.00040375,120]
[400536910,1767702653224,-342.9382,0.000404,120]
[400536911,1767702653235,-15798.93,0.000404,2]
[400536912,1767702653245,-168.0,0.00040434,7]
[400536913,1767702653255,-168.0,0.00040449,120]
[400536914,1767702653264,-155.73,0.00040485,120]
[400536915,1767702653274,-157.56857,0.00040488,30]
[400536916,1767702653284,-500.0,0.00040499,60]
[400536917,1767702653294,-500.0,0.00040499,120]
[400536919,1767702653303,-638.87110572,0.000405,31]
[400536920,1767702653313,-250.0,0.000405,45]
[400536921,1767702653322,-250.0,0.000405,45]
[400536922,1767702653332,-250.0,0.000405,45]
[400536923,1767702653342,-250.0,0.000405,45]
[400536924,1767702653352,-225981.0,0.000405,120]
[400536925,1767702653363,-160.2,0.000405,30]
[400536926,1767702653374,-151.0,0.000405,120]
[400536927,1767702653383,-166.653075,0.000405,120]
[400536928,1767702653393,-151.0,0.000405,120]
[400536929,1767702653403,-224.549338,0.000405,120]
[400536930,1767702653413,-243.781657,0.000405,120]
[400536931,1767702653423,-243.781657,0.000405,120]
[400536932,1767702653433,-243.781657,0.000405,120]
[400536933,1767702653442,-151.0,0.000405,120]
[400536934,1767702653451,-243.781657,0.000405,120]
[400536935,1767702653460,-153.593306,0.000405,30]
[400536936,1767702653470,-459.461849,0.000405,28]
[400536937,1767702653480,-459.461849,0.000405,28]
[400536938,1767702653490,-459.461849,0.000405,28]
[400536939,1767702653500,-459.461849,0.000405,28]
[400536940,1767702653509,-151.0,0.000405,120]
[400536941,1767702653519,-151.0,0.000405,120]
[400536942,1767702653529,-215.388263,0.000405,120]
[400536944,1767702653538,-1915.143244,0.000405,120]
[400536945,1767702653547,-1915.143244,0.000405,120]
[400536946,1767702653557,-1915.143244,0.000405,120]
[400536947,1767702653567,-1915.143254,0.000405,120]
[400536948,1767702653577,-325.370459,0.000405,120]
[400536949,1767702653586,-325.370459,0.000405,120]
[400536950,1767702653596,-325.370459,0.000405,120]
[400536951,1767702653605,-325.370457,0.000405,120]
[400536952,1767702653614,-198.329205,0.000405,120]
[400536953,1767702653623,-170.601786,0.000405,120]
[400536954,1767702653633,-198.329205,0.000405,120]
[400536955,1767702653645,-170.601786,0.000405,120]
[400536956,1767702653654,-198.329205,0.000405,120]
[400536957,1767702653664,-170.601786,0.000405,120]
[400536958,1767702653674,-198.329213,0.000405,120]
[400536959,1767702653683,-170.601781,0.000405,120]
[400536960,1767702653693,-151.0,0.000405,120]
[400536961,1767702653703,-151.0,0.000405,120]
[400536962,1767702653714,-151.0,0.000405,120]
[400536963,1767702653723,-183.769106,0.000405,120]
[400536964,1767702653733,-151.0,0.000405,120]
[400536965,1767702653744,-151.0,0.000405,120]
[400536966,1767702653754,-154.837006,0.000405,7]
[400536967,1767702653764,-5200.0,0.000405,120]
[400536968,1767702653774,-154.837006,0.000405,7]
[400536969,1767702653783,-151.0,0.000405,120]
[400536970,1767702653794,-5200.0,0.000405,120]
[400536971,1767702653804,-154.837006,0.000405,7]
[400536972,1767702653814,-151.0,0.000405,120]
[400536973,1767702653824,-5200.0,0.000405,120]